bitfinex-derivatives/quotes_BTCF0:USTF0_20250510
["timestamp","ask_amount","ask_price","bid_price","bid_amount"]
[1746858265561,1.0400771,103570.0,103560.0,1.30984099]
[1746858265768,1.0400771,103570.0,103560.0,1.57996099]
[1746858266568,1.0400771,103570.0,103560.0,1.57996374]
[1746858268277,1.0400771,103570.0,103560.0,1.62698481]
[1746858268473,1.0400771,103570.0,103560.0,1.57996598]
[1746858270173,1.11167197,103570.0,103560.0,1.41584804]
[1746858270384,1.11167197,103570.0,103560.0,1.54972804]
[1746858271488,1.11167197,103570.0,103560.0,1.54772804]
[1746858271690,1.11167197,103570.0,103560.0,1.54872804]
[1746858271890,1.11167197,103570.0,103560.0,1.35333517]
[1746858272090,1.11167197,103570.0,103560.0,1.35133517]
[1746858272590,1.11167197,103570.0,103560.0,1.35133268]
[1746858273979,1.06465314,103570.0,103560.0,1.35133268]
[1746858275594,1.06465314,103570.0,103560.0,1.35132424]
[1746858276894,1.11167197,103570.0,103560.0,1.35132424]
[1746858277196,1.11167197,103570.0,103560.0,1.38382424]
[1746858280798,1.11167197,103570.0,103560.0,1.38382005]
[1746858281698,1.11167197,103570.0,103560.0,1.38381948]
[1746858282788,1.11167197,103570.0,103560.0,1.38381915]
[1746858283297,1.11167197,103570.0,103560.0,1.24993915]
[1746858284101,1.06465314,103570.0,103560.0,1.24993915]
[1746858284593,1.11167197,103570.0,103560.0,1.24993915]
[1746858289307,0.53171197,103570.0,103560.0,1.24993915]
[1746858289508,1.11167197,103570.0,103560.0,1.24993915]
[1746858289908,1.11167197,103570.0,103560.0,1.24994078]
[1746858291214,1.11167197,103570.0,103560.0,0.88914078]
[1746858294304,0.53171197,103570.0,103560.0,0.69604508]
[1746858294605,1.11167197,103570.0,103560.0,0.88914078]
[1746858297211,1.11167197,103570.0,103560.0,0.69604508]
[1746858297511,1.11167197,103570.0,103560.0,0.88914078]
[1746858297713,1.11167197,103570.0,103560.0,0.92174078]
[1746858302308,0.53171197,103570.0,103560.0,0.92174078]
[1746858302513,1.11167197,103570.0,103560.0,0.92174078]
[1746858303115,1.06465314,103570.0,103560.0,0.92174078]
[1746858303314,1.11167197,103570.0,103560.0,0.92174078]
[1746858303715,1.11167197,103570.0,103560.0,0.92175983]
[1746858304812,1.11167197,103570.0,103560.0,0.90712932]
[1746858305017,1.11167197,103570.0,103560.0,0.92175985]
[1746858305221,1.11167197,103570.0,103560.0,0.90712932]
[1746858305410,1.11167197,103570.0,103560.0,0.92175985]
[1746858305606,1.11167197,103570.0,103560.0,0.90712932]
[1746858305812,1.11167197,103570.0,103560.0,0.92175988]
[1746858306114,1.06465314,103570.0,103560.0,0.90712932]
[1746858306315,1.11167197,103570.0,103560.0,0.92176139]
[1746858306516,1.11167197,103570.0,103560.0,0.9217616]
[1746858306715,1.11167197,103570.0,103560.0,0.92176172]
[1746858307222,1.06465314,103570.0,103560.0,0.92176172]
[1746858307412,0.42239314,103570.0,103560.0,0.92176172]
[1746858307718,0.3663171,103570.0,103560.0,0.96878055]
[1746858308121,0.2003171,103570.0,103560.0,0.96878055]
[1746858308316,0.24733593,103570.0,103560.0,0.92176016]
[1746858308515,0.24733593,103570.0,103560.0,1.11715603]
[1746858308716,0.24733593,103570.0,103560.0,1.11715463]
[1746858309219,0.41333593,103570.0,103560.0,1.11715463]
[1746858309623,0.3663171,103570.0,103560.0,1.11715463]
[1746858310024,0.3663171,103570.0,103560.0,1.16417346]
[1746858310815,0.3663171,103570.0,103560.0,1.16417146]
[1746858311014,0.3663171,103570.0,103560.0,0.96877559]
[1746858311216,0.1547053,103600.0,103580.0,0.3378257]
[1746858311417,1.08058094,103600.0,103590.0,0.7820798]
[1746858311617,1.1746186,103600.0,103590.0,0.60366744]
[1746858311923,1.2374186,103600.0,103590.0,0.70022515]
[1746858312124,1.4034186,103600.0,103590.0,0.66942515]
[1746858312725,1.4044186,103600.0,103590.0,0.66942515]
[1746858313316,1.31538094,103600.0,103590.0,0.89506495]
[1746858313619,1.36239977,103600.0,103590.0,0.89506495]
[1746858314217,1.36239977,103600.0,103590.0,0.89504337]
[1746858314218,1.4094186,103600.0,103590.0,0.89504337]
[1746858314625,1.4094186,103600.0,103590.0,0.70200357]
[1746858315124,1.36239977,103600.0,103590.0,0.70200357]
[1746858315626,1.4094186,103600.0,103590.0,0.70200357]
[1746858316027,1.4094186,103600.0,103590.0,0.70199532]
[1746858316324,1.4044186,103600.0,103590.0,0.70199532]
[1746858316526,1.35839977,103600.0,103590.0,0.70199532]
[1746858318929,1.35839977,103600.0,103590.0,0.89503512]
[1746858319431,1.4054186,103600.0,103590.0,0.89503512]
[1746858319617,1.4054186,103600.0,103590.0,0.53595532]
[1746858319618,1.31138094,103600.0,103590.0,0.53595532]
[1746858319929,1.4054186,103600.0,103590.0,0.53594698]
[1746858320131,1.4054186,103600.0,103590.0,0.66934698]
[1746858321020,1.4054186,103600.0,103590.0,0.69984698]
[1746858322024,1.4054186,103600.0,103590.0,0.66934698]
[1746858323328,1.4054186,103600.0,103590.0,0.66934577]
[1746858325129,1.4054186,103600.0,103590.0,0.53594577]
[1746858325327,1.4054186,103600.0,103590.0,0.66934577]
[1746858327025,1.4054186,103600.0,103590.0,0.6693478]
[1746858329738,1.4054186,103600.0,103590.0,0.5359478]
[1746858329929,1.4054186,103600.0,103590.0,0.6693478]
[1746858332828,1.31138094,103600.0,103590.0,0.6693478]
[1746858333127,1.4054186,103600.0,103590.0,0.6693478]
[1746858334339,1.4054186,103600.0,103590.0,0.6689878]
[1746858334636,1.4054186,103600.0,103590.0,0.66900089]
[1746858336439,1.4054186,103600.0,103590.0,0.66900112]
[1746858337833,1.31138094,103600.0,103590.0,0.66900112]
[1746858338033,1.4054186,103600.0,103590.0,0.66900112]
[1746858338236,1.4054186,103600.0,103590.0,0.66900951]
[1746858340033,1.4054186,103600.0,103590.0,0.66902086]
[1746858341642,1.4126486,103600.0,103590.0,0.66902086]
[1746858341836,1.4126486,103600.0,103590.0,0.65439771]
[1746858342036,1.4126486,103600.0,103590.0,0.66903191]
[1746858344842,1.4126486,103600.0,103590.0,0.53599191]
[1746858345043,1.4126486,103600.0,103590.0,0.66903191]
[1746858345542,1.4126486,103600.0,103590.0,0.53599191]
[1746858346134,1.4126486,103600.0,103590.0,0.66903191]
[1746858346634,1.4126486,103600.0,103590.0,0.53599191]
[1746858346834,1.4126486,103600.0,103590.0,0.66903191]
[1746858347034,1.4126486,103600.0,103590.0,0.53599191]
[1746858347243,1.4126486,103600.0,103590.0,0.66907173]
[1746858347541,1.4126486,103600.0,103590.0,0.65443771]
[1746858347746,1.4126486,103600.0,103590.0,0.66907231]
[1746858348248,1.31861094,103600.0,103590.0,0.66907231]
[1746858348445,1.4126486,103600.0,103590.0,0.66907231]
[1746858349539,1.4126486,103600.0,103590.0,0.66907435]
[1746858350140,1.4112,103600.0,103590.0,0.66907435]
[1746858352349,1.4112,103600.0,103590.0,0.53599435]
[1746858352546,1.4112,103600.0,103590.0,0.66907435]
[1746858355045,1.31716234,103600.0,103590.0,0.66907435]
[1746858355244,1.4112,103600.0,103590.0,0.66907435]
[1746858355646,1.4112,103600.0,103590.0,0.70097435]
[1746858356661,1.40397,103600.0,103590.0,0.70097435]
[1746858359064,1.30993234,103600.0,103590.0,0.70097357]
[1746858359265,1.40397,103600.0,103590.0,0.70097357]
[1746858359458,1.40397,103600.0,103590.0,0.34017357]
[1746858359659,1.40397,103600.0,103590.0,0.70097357]
[1746858360666,1.40397,103600.0,103590.0,0.89401337]
[1746858360865,1.40397,103600.0,103590.0,0.70097342]
[1746858361366,1.4112,103600.0,103590.0,0.89401322]
[1746858361566,1.3479,103600.0,103590.0,0.89401322]
[1746858361770,1.26958117,103600.0,103590.0,0.89401322]
[1746858362164,1.26958117,103600.0,103590.0,0.89401539]
[1746858363665,1.22256234,103600.0,103590.0,0.89401539]
[1746858363969,1.26858117,103600.0,103590.0,0.89501539]
[1746858364171,1.10258117,103600.0,103590.0,0.89501539]
[1746858364371,1.10158117,103600.0,103590.0,0.89601539]
[1746858365168,1.26758117,103600.0,103590.0,0.89601539]
[1746858365972,1.26758117,103600.0,103590.0,0.89601563]
[1746858366267,1.1959863,103600.0,103590.0,0.89601563]
[1746858366471,1.1959863,103600.0,103590.0,0.94303446]
[1746858366866,1.24300513,103600.0,103590.0,0.89601563]
[1746858367367,1.07700513,103600.0,103590.0,0.89601563]
[1746858367876,1.0299863,103600.0,103590.0,0.89605531]
[1746858369173,1.1959863,103600.0,103590.0,0.89605531]
[1746858369373,0.66304513,103600.0,103590.0,0.89605531]
[1746858369974,0.66304513,103600.0,103590.0,1.04288946]
[1746858370174,0.49704513,103600.0,103590.0,1.04288946]
[1746858372577,0.4500263,103600.0,103590.0,1.04288946]
[1746858372869,0.11223,103600.0,103590.0,1.08990829]
[1746858373071,0.3052512,103600.0,103590.0,1.18990829]
[1746858373466,0.3052512,103600.0,103590.0,1.08990829]
[1746858375971,0.3052512,103600.0,103590.0,1.28530416]
[1746858377373,0.3052512,103600.0,103590.0,1.2852851]
[1746858377676,0.3052512,103600.0,103590.0,1.23826627]
[1746858377878,0.3052512,103600.0,103590.0,1.2852851]
[1746858378272,0.3052512,103600.0,103590.0,1.23826627]
[1746858378474,0.11223,103600.0,103590.0,1.2852851]
[1746858378776,0.11223,103600.0,103590.0,1.3852851]
[1746858378980,0.3052512,103600.0,103590.0,1.1428704]
[1746858379276,0.3052512,103600.0,103590.0,1.18988923]
[1746858379977,0.3052512,103600.0,103590.0,1.08988923]
[1746858380880,0.11223,103600.0,103590.0,1.08988923]
[1746858381073,0.3052512,103600.0,103590.0,1.08988923]
[1746858382576,0.11223,103600.0,103590.0,1.08988923]
[1746858382778,0.3052512,103600.0,103590.0,1.08988923]
[1746858382973,0.11223,103600.0,103590.0,1.18988923]
[1746858383276,0.11223,103600.0,103590.0,1.28641723]
[1746858384279,0.11223,103600.0,103590.0,1.28640976]
[1746858384577,0.11223,103600.0,103590.0,1.18988176]
[1746858384782,0.11223,103600.0,103590.0,1.18988201]
[1746858384976,0.3052512,103600.0,103590.0,1.18988202]
[1746858385780,0.3052512,103600.0,103590.0,1.22379221]
[1746858385969,0.3052512,103600.0,103590.0,1.23844119]
[1746858390078,0.3052512,103600.0,103590.0,1.23844172]
[1746858390877,0.3052512,103600.0,103590.0,1.13844172]
[1746858394578,0.004,103620.0,103590.0,1.18894875]
[1746858394778,0.196989,103620.0,103610.0,1.06162133]
[1746858394968,0.776949,103620.0,103610.0,1.30439084]
[1746858395367,0.776949,103620.0,103610.0,1.35390176]
[1746858395581,0.809849,103620.0,103610.0,1.25390176]
[1746858395880,0.809849,103620.0,103610.0,1.25389595]
[1746858396067,0.875849,103620.0,103610.0,1.25389595]
[1746858396267,0.92286783,103620.0,103610.0,1.25389595]
[1746858396673,0.92286783,103620.0,103610.0,1.35463595]
[1746858396879,0.92286783,103620.0,103610.0,1.08947595]
[1746858397075,1.08886783,103620.0,103610.0,1.35431595]
[1746858397580,1.041849,103620.0,103610.0,1.35431595]
[1746858397781,1.042849,103620.0,103610.0,1.35430367]
[1746858398080,1.042849,103620.0,103610.0,1.08946367]
[1746858398282,1.042849,103620.0,103610.0,1.35426367]
[1746858398784,1.041849,103620.0,103610.0,1.5006995]
[1746858399281,1.08886783,103620.0,103610.0,1.5006995]
[1746858399683,1.08886783,103620.0,103610.0,1.47955963]
[1746858400169,1.13588666,103620.0,103610.0,1.02175713]
[1746858400375,1.13588666,103620.0,103610.0,1.28655713]
[1746858400569,1.1604627,103620.0,103610.0,1.25375713]
[1746858401284,1.1604627,103620.0,103610.0,0.98895713]
[1746858401476,1.1604627,103620.0,103610.0,1.25371713]
[1746858402079,1.1604627,103620.0,103610.0,1.24395216]
[1746858402284,1.1604627,103620.0,103610.0,1.24395888]
[1746858403477,1.1604627,103620.0,103610.0,1.2535119]
[1746858404879,1.1604627,103620.0,103610.0,0.9887519]
[1746858405093,1.1604627,103620.0,103610.0,1.1211519]
[1746858405387,1.1604627,103620.0,103610.0,0.97472028]
[1746858408879,1.1604627,103620.0,103610.0,0.97472767]
[1746858409080,1.1604627,103620.0,103610.0,1.16773017]
[1746858409284,1.1604627,103620.0,103610.0,1.19853017]
[1746858410376,1.1604627,103620.0,103610.0,1.00552767]
[1746858412288,1.1604627,103620.0,103610.0,0.97472767]
[1746858413480,1.1604627,103620.0,103610.0,1.16773017]
[1746858413690,1.1604627,103620.0,103610.0,1.19843017]
[1746858414480,1.1604627,103620.0,103610.0,1.19843456]
[1746858415982,1.1604627,103620.0,103610.0,0.47683456]
[1746858416183,1.1604627,103620.0,103610.0,0.83763456]
[1746858418088,1.1604627,103620.0,103610.0,0.86873456]
[1746858418287,1.1604627,103620.0,103610.0,0.86873969]
[1746858418890,1.1604627,103620.0,103610.0,0.50793969]
[1746858419090,1.1604627,103620.0,103610.0,0.86873969]
[1746858420590,1.11344387,103620.0,103610.0,0.86873969]
[1746858420987,1.1604627,103620.0,103610.0,0.86873969]
[1746858421388,1.1604627,103620.0,103610.0,0.86874265]
[1746858421590,1.1604627,103620.0,103610.0,0.50794265]
[1746858421788,1.1604627,103620.0,103610.0,0.86874265]
[1746858422695,1.1604627,103620.0,103610.0,0.73634265]
[1746858422886,1.1604627,103620.0,103610.0,0.86874265]
[1746858423291,1.1604627,103620.0,103610.0,0.73634265]
[1746858423490,1.1604627,103620.0,103610.0,0.86874265]
[1746858424192,1.1604627,103620.0,103610.0,0.73634265]
[1746858424494,1.1604627,103620.0,103610.0,0.86874265]
[1746858424694,1.1604627,103620.0,103610.0,0.73634265]
[1746858424895,1.1604627,103620.0,103610.0,0.9010412]
[1746858425384,1.1604627,103620.0,103610.0,0.5402412]
[1746858425589,1.1604627,103620.0,103610.0,0.9010412]
[1746858426200,1.06642504,103620.0,103610.0,0.9010412]
[1746858426493,1.11344387,103620.0,103610.0,0.9010412]
[1746858426902,0.96852504,103620.0,103610.0,0.9010412]
[1746858427097,1.01554387,103620.0,103610.0,0.9010412]
[1746858427489,0.99096783,103620.0,103610.0,0.9010412]
[1746858427696,1.01554387,103620.0,103610.0,0.9010412]
[1746858429800,1.01554387,103620.0,103610.0,1.04747703]
[1746858430298,1.01554387,103620.0,103610.0,1.04749397]
[1746858431602,1.02277387,103620.0,103610.0,1.04749397]
[1746858433906,1.02277387,103620.0,103610.0,1.04749475]
[1746858435909,0.97575504,103620.0,103610.0,1.04749475]
[1746858436104,1.02277387,103620.0,103610.0,1.04749475]
[1746858437408,1.08647387,103620.0,103610.0,1.04749475]
[1746858437606,1.08647387,103620.0,103610.0,1.04749421]
[1746858441005,1.08647387,103620.0,103610.0,1.0328211]
[1746858441310,1.11777387,103620.0,103610.0,1.04749844]
[1746858442819,1.11777387,103620.0,103610.0,1.0328211]
[1746858443110,1.11777387,103620.0,103610.0,1.04750222]
[1746858443505,1.07075504,103620.0,103610.0,1.04750222]
[1746858443711,1.11777387,103620.0,103610.0,1.04750222]
[1746858445312,0.53781387,103620.0,103610.0,1.04750222]
[1746858445512,1.11777387,103620.0,103610.0,1.04750222]
[1746858453420,1.11777387,103620.0,103610.0,0.68670222]
[1746858453621,1.11777387,103620.0,103610.0,1.04749833]
[1746858454513,1.07075504,103620.0,103610.0,1.04749833]
[1746858454718,1.11777387,103620.0,103610.0,1.04749833]
[1746858456423,1.11777387,103620.0,103610.0,1.04749856]
[1746858456918,1.11777387,103620.0,103610.0,1.04749859]
[1746858457318,1.11777387,103620.0,103610.0,1.0328211]
[1746858457522,1.11777387,103620.0,103610.0,0.85449544]
[1746858457725,1.11777387,103620.0,103610.0,1.04749794]
[1746858457915,1.11777387,103620.0,103610.0,1.04732674]
[1746858458115,1.11777387,103620.0,103610.0,0.85432424]
[1746858458418,1.1647927,103620.0,103610.0,0.72192424]
[1746858458618,1.1647927,103620.0,103610.0,0.82134424]
[1746858459116,1.11777387,103620.0,103610.0,0.82134424]
[1746858460625,1.11777387,103620.0,103610.0,0.82129784]
[1746858460824,1.07075504,103620.0,103610.0,1.01430034]
[1746858461024,1.11777387,103620.0,103610.0,1.04540034]
[1746858462320,1.11777387,103620.0,103610.0,1.0307699]
[1746858462520,1.11777387,103620.0,103610.0,1.04540029]
[1746858464324,0.09765517,103710.0,103690.0,0.1928536]
[1746858464525,0.09765517,103710.0,103690.0,0.60067243]
[1746858464720,0.09765517,103710.0,103690.0,1.23937772]
[1746858464721,0.004,103710.0,103690.0,1.23937772]
[1746858464921,0.1968212,103710.0,103690.0,1.63798885]
[1746858465220,0.004,103710.0,103700.0,0.192835]
[1746858465428,0.00187933,103720.0,103710.0,0.23315487]
[1746858465623,0.00187933,103720.0,103710.0,0.53285847]
[1746858465624,0.19467723,103720.0,103710.0,0.53285847]
[1746858465923,0.19467723,103720.0,103710.0,0.76091653]
[1746858466117,0.19467723,103720.0,103710.0,0.94141414]
[1746858466316,0.19467723,103720.0,103710.0,0.56611653]
[1746858466621,0.19467723,103720.0,103710.0,0.92691653]
[1746858467128,0.19467723,103720.0,103710.0,0.50825877]
[1746858467317,0.26608454,103720.0,103710.0,0.50825877]
[1746858467629,0.47621638,103720.0,103710.0,0.77453877]
[1746858467930,0.47621638,103720.0,103710.0,0.1101203]
[1746858468229,1.00201638,103720.0,103710.0,0.0851217]
[1746858469017,1.00401638,103720.0,103710.0,0.0821217]
[1746858469434,1.00401638,103720.0,103710.0,1e-07]
[1746858469618,1.00401638,103720.0,103710.0,0.09641816]
[1746858469822,1.00401638,103720.0,103710.0,0.09641806]
[1746858470025,1.00601638,103720.0,103710.0,0.09641806]
[1746858470231,0.64521638,103720.0,103710.0,0.09641806]
[1746858470529,0.1928164,103710.0,103700.0,0.05499377]
[1746858470730,0.47385555,103710.0,103700.0,0.05499377]
[1746858470925,0.47385555,103710.0,103700.0,0.15141183]
[1746858471129,0.56844824,103710.0,103700.0,0.15141183]
[1746858471323,0.56844824,103710.0,103700.0,0.57711183]
[1746858471731,0.56944824,103710.0,103700.0,0.57711183]
[1746858472329,0.56944824,103710.0,103700.0,0.73959683]
[1746858473326,0.56944824,103710.0,103700.0,0.81100414]
[1746858473526,0.57244824,103710.0,103700.0,0.73959683]
[1746858473839,0.3628164,103710.0,103700.0,0.85134261]
[1746858474130,0.1948164,103710.0,103700.0,0.85134261]
[1746858474320,0.1938164,103710.0,103700.0,0.85234261]
[1746858475133,0.1938164,103710.0,103700.0,0.85134261]
[1746858475332,0.1938164,103710.0,103700.0,0.85434261]
[1746858476126,0.1928164,103710.0,103700.0,0.85634261]
[1746858476932,0.20808503,103720.0,103700.0,0.95275331]
[1746858477124,0.1928164,103710.0,103700.0,0.93605941]
[1746858477326,0.1928164,103710.0,103700.0,1.55997941]
[1746858478236,0.1928164,103710.0,103700.0,1.55797941]
[1746858479231,0.12838173,103720.0,103710.0,0.1928164]
[1746858479232,0.29109343,103720.0,103710.0,0.1928164]
[1746858479434,0.43832527,103720.0,103710.0,0.5536164]
[1746858479623,0.00187933,103720.0,103710.0,0.62502371]
[1746858479828,0.00187933,103720.0,103710.0,0.72145107]
[1746858480136,0.19467723,103720.0,103710.0,0.72145107]
[1746858480348,0.00187933,103720.0,103710.0,0.72145107]
[1746858480533,0.19467723,103720.0,103710.0,0.73651986]
[1746858480733,0.19467723,103720.0,103710.0,0.73651967]
[1746858481131,0.19467723,103720.0,103710.0,0.73751967]
[1746858481437,0.1927979,103720.0,103710.0,0.89257356]
[1746858481938,0.1927979,103720.0,103710.0,0.89257355]
[1746858482236,0.1927979,103720.0,103710.0,0.89457355]
[1746858483028,0.1927979,103720.0,103710.0,0.89657355]
[1746858483225,0.2088915,103730.0,103710.0,0.82516624]
[1746858483532,0.54890264,103730.0,103720.0,0.62384]
[1746858483733,0.58720995,103730.0,103720.0,0.63429016]
[1746858483929,0.51580264,103730.0,103720.0,0.63429016]
[1746858484133,0.68180264,103730.0,103720.0,0.73070358]
[1746858485228,0.68180264,103730.0,103720.0,0.46866358]
[1746858485433,0.68180264,103730.0,103720.0,0.10786358]
[1746858485434,1.11400995,103730.0,103720.0,0.10786358]
[1746858485639,1.12123995,103730.0,103720.0,0.10786358]
[1746858486729,0.48655614,103740.0,103730.0,0.1927793]
[1746858486730,0.00615843,103740.0,103730.0,0.1927793]
[1746858487032,0.00615843,103740.0,103730.0,0.78210715]
[1746858487426,0.00615843,103740.0,103730.0,0.87851592]
[1746858487845,0.19891913,103740.0,103730.0,0.67550861]
[1746858488036,0.00715843,103740.0,103730.0,1.00975592]
[1746858488240,0.19533764,103760.0,103750.0,0.1927421]
[1746858488439,0.37346948,103760.0,103750.0,1.18759226]
[1746858488831,0.37346948,103760.0,103750.0,1.31499173]
[1746858489139,0.53946948,103760.0,103750.0,1.31499173]
[1746858489336,0.53946948,103760.0,103750.0,1.33005678]
[1746858489838,0.53946948,103760.0,103750.0,1.12224963]
[1746858490034,0.53946948,103760.0,103750.0,0.85944963]
[1746858490340,0.54546948,103760.0,103750.0,1.12224963]
[1746858491539,0.61687679,103760.0,103750.0,1.13731478]
[1746858492233,0.61687679,103760.0,103750.0,1.17001478]
[1746858492433,0.54546948,103760.0,103750.0,0.90721478]
[1746858492633,0.54546948,103760.0,103750.0,1.16997478]
[1746858493042,0.54546948,103760.0,103750.0,1.17002636]
[1746858494343,0.54546948,103760.0,103750.0,1.13902636]
[1746858495745,0.54546948,103760.0,103750.0,1.28546219]
[1746858498245,0.54546948,103760.0,103750.0,1.28546226]
[1746858498450,0.54546948,103760.0,103750.0,1.48085813]
[1746858498937,0.54546948,103760.0,103750.0,0.82459813]
[1746858499138,0.61687679,103760.0,103750.0,0.82459813]
[1746858499543,0.61687679,103760.0,103750.0,1.08731813]
[1746858499846,0.54546948,103760.0,103750.0,1.08731813]
[1746858500045,0.54546948,103760.0,103750.0,1.11741813]
[1746858501544,0.54546948,103760.0,103750.0,0.92202226]
[1746858502046,0.57796948,103760.0,103750.0,0.92202226]
[1746858502546,0.57596948,103760.0,103750.0,0.92202226]
[1746858502739,0.57496948,103760.0,103750.0,0.92202226]
[1746858502934,0.57596948,103760.0,103750.0,0.92202226]
[1746858503133,0.57596948,103760.0,103750.0,0.95382226]
[1746858504143,0.57596948,103760.0,103750.0,0.9538646]
[1746858504649,0.57596948,103760.0,103750.0,1.00282464]
[1746858505648,0.57496948,103760.0,103750.0,1.00282464]
[1746858505947,0.57396948,103760.0,103750.0,1.00282464]
[1746858506445,0.57396948,103760.0,103750.0,1.19556674]
[1746858507148,0.57396948,103760.0,103750.0,1.21001674]
[1746858507949,0.57396948,103760.0,103750.0,1.21002637]
[1746858508848,0.57396948,103760.0,103750.0,1.01728427]
[1746858509549,0.57396948,103760.0,103750.0,0.75456427]
[1746858509848,0.57396948,103760.0,103750.0,1.01725181]
[1746858510051,0.57396948,103760.0,103750.0,1.20999391]
[1746858510238,0.57396948,103760.0,103750.0,1.19943306]
[1746858510951,0.57396948,103760.0,103750.0,0.74401096]
[1746858511151,0.57496948,103760.0,103750.0,1.00669096]
[1746858512551,0.57496948,103760.0,103750.0,1.58526566]
[1746858512944,1.00717679,103760.0,103750.0,0.89988566]
[1746858513145,1.00717679,103760.0,103750.0,0.80348619]
[1746858513547,1.00717679,103760.0,103750.0,0.80348807]
[1746858513748,1.00617679,103760.0,103750.0,0.80348807]
[1746858514053,1.00617679,103760.0,103750.0,0.80348803]
[1746858514555,1.00717679,103760.0,103750.0,0.89986892]
[1746858515240,1.00517679,103760.0,103750.0,0.89986892]
[1746858515446,1.00917679,103760.0,103750.0,0.89986897]
[1746858515751,1.00917679,103760.0,103750.0,0.27174192]
[1746858515950,1.04137679,103760.0,103750.0,0.27174192]
[1746858516255,1.04037679,103760.0,103750.0,0.27174192]
[1746858516452,1.04137679,103760.0,103750.0,0.27174192]
[1746858517055,1.03737679,103760.0,103750.0,0.27174192]
[1746858517248,1.04037679,103760.0,103750.0,0.27174192]
[1746858519257,0.96896948,103760.0,103750.0,0.27174192]
[1746858519452,1.04037679,103760.0,103750.0,0.27174192]
[1746858519760,1.04037679,103760.0,103750.0,0.1258984]
[1746858520152,1.04037679,103760.0,103750.0,0.1562684]
[1746858521560,0.96896948,103760.0,103750.0,0.1562684]
[1746858522348,1.04037679,103760.0,103750.0,0.1562684]
[1746858522549,1.04037679,103760.0,103750.0,0.04482]
[1746858529174,0.96896948,103760.0,103750.0,0.04482]
[1746858529370,1.04037679,103760.0,103750.0,0.07762]
[1746858532182,1.04037679,103760.0,103750.0,0.04725]
[1746858532782,1.04037679,103760.0,103750.0,0.07763]
[1746858534083,0.96896948,103760.0,103750.0,0.07763]
[1746858534386,1.04037679,103760.0,103750.0,0.07763]
[1746858535086,1.04037679,103760.0,103750.0,0.10873]
[1746858535782,1.04037679,103760.0,103750.0,0.12359843]
[1746858535978,1.04037679,103760.0,103750.0,0.10934766]
[1746858536386,0.96896948,103760.0,103750.0,0.10934766]
[1746858536889,1.04037679,103760.0,103750.0,0.10934766]
[1746858537190,0.96896948,103760.0,103750.0,0.10934766]
[1746858537489,1.04037679,103760.0,103750.0,0.10934766]
[1746858537690,1.01581715,103760.0,103750.0,0.10934766]
[1746858538192,1.01581715,103760.0,103750.0,0.07824766]
[1746858538578,1.06266482,103760.0,103750.0,0.07824766]
[1746858538890,1.06266482,103760.0,103750.0,0.06318]
[1746858539287,1.06266482,103760.0,103750.0,0.07824763]
[1746858539593,1.06266482,103760.0,103750.0,0.06318]
[1746858539999,1.01581715,103760.0,103750.0,0.06318]
[1746858540290,1.01581715,103760.0,103750.0,0.10954759]
[1746858544099,0.65501715,103760.0,103750.0,0.10954759]
[1746858544292,1.01581715,103760.0,103750.0,0.10954759]
[1746858544500,1.01581715,103760.0,103750.0,0.07824759]
[1746858545898,1.01581715,103760.0,103750.0,0.10884759]
[1746858549305,0.87580531,103760.0,103750.0,0.10884759]
[1746858549505,1.02303715,103760.0,103750.0,0.10884759]
[1746858550607,1.06988482,103760.0,103750.0,0.10884759]
[1746858550901,1.06988482,103760.0,103750.0,0.07824759]
[1746858551296,0.92265298,103760.0,103750.0,0.07824759]
[1746858551497,1.06988482,103760.0,103750.0,0.06318]
[1746858552701,1.06988482,103760.0,103750.0,0.04544766]
[1746858553008,1.06988482,103760.0,103750.0,0.03038]
[1746858555307,1.06988482,103760.0,103750.0,0.06338]
[1746858557112,0.97618948,103760.0,103750.0,0.06338]
[1746858557308,0.92265298,103760.0,103750.0,0.06338]
[1746858557516,1.06988482,103760.0,103750.0,0.06338]
[1746858557713,1.06988482,103760.0,103750.0,0.03038]
[1746858558719,0.1927793,103730.0,103720.0,0.38302398]
[1746858559021,0.74765881,103730.0,103720.0,0.52577438]
[1746858559221,0.97775881,103730.0,103720.0,0.52577438]
[1746858559605,0.61695881,103730.0,103720.0,0.52577463]
[1746858559810,0.61695881,103730.0,103720.0,0.88657463]
[1746858560014,0.64765881,103730.0,103720.0,0.92277463]
[1746858560216,0.64765881,103730.0,103720.0,0.92277487]
[1746858561312,0.64765881,103730.0,103720.0,0.58153548]
[1746858561712,0.64765881,103730.0,103720.0,0.58253548]
[1746858562020,0.64765881,103730.0,103720.0,0.57953548]
[1746858562222,0.64765881,103730.0,103720.0,0.58053548]
[1746858563222,0.64765881,103730.0,103720.0,0.58053546]
[1746858564319,0.64765881,103730.0,103720.0,0.21973546]
[1746858564722,0.64765881,103730.0,103720.0,0.58053546]
[1746858565110,0.64765881,103730.0,103720.0,0.21973525]
[1746858565822,0.64765881,103730.0,103720.0,0.58053537]
[1746858566514,0.64765881,103730.0,103720.0,0.21973537]
[1746858567216,1.00845881,103730.0,103720.0,0.21973537]
[1746858567418,1.00845881,103730.0,103720.0,0.1793969]
[1746858568026,1.00845881,103730.0,103720.0,0.17939778]
[1746858568825,0.64765881,103730.0,103720.0,0.17939778]
[1746858572130,0.64765881,103730.0,103720.0,0.17939748]
[1746858574033,0.60081114,103730.0,103720.0,0.17939748]
[1746858574234,0.64765881,103730.0,103720.0,0.17939748]
[1746858574532,0.61635881,103730.0,103720.0,0.17795136]
[1746858574828,0.64915881,103730.0,103720.0,0.17795136]
[1746858575222,0.50192697,103730.0,103720.0,0.17795136]
[1746858575422,0.64915881,103730.0,103720.0,0.17795136]
[1746858575828,0.64915881,103730.0,103720.0,0.08157047]
[1746858577432,0.64915881,103730.0,103720.0,0.0665]
[1746858577631,0.64915881,103730.0,103720.0,0.08157082]
[1746858578531,1.00995881,103730.0,103720.0,0.08157082]
[1746858579531,1.05680648,103730.0,103720.0,0.08157082]
[1746858579933,1.00995881,103730.0,103720.0,0.08157082]
[1746858580233,1.00995881,103730.0,103720.0,0.0665]
[1746858581434,1.00995881,103730.0,103720.0,0.08157123]
[1746858583332,0.96311114,103730.0,103720.0,0.08157123]
[1746858583529,0.60231114,103730.0,103720.0,0.08157123]
[1746858583734,1.00995881,103730.0,103720.0,0.17798]
[1746858583934,0.64915881,103730.0,103720.0,0.17798]
[1746858584143,1.00995881,103730.0,103720.0,0.17798]
[1746858584341,0.64915881,103730.0,103720.0,0.17798]
[1746858584840,0.56951114,103730.0,103720.0,0.41762557]
[1746858585039,0.3587793,103730.0,103720.0,0.81876404]
[1746858585241,0.1927793,103730.0,103720.0,0.81876404]
[1746858585632,0.1927793,103730.0,103720.0,0.81876115]
[1746858586442,0.1927793,103730.0,103720.0,0.81876121]
[1746858587145,0.3587793,103730.0,103720.0,0.81876121]
[1746858587448,0.3587793,103730.0,103720.0,0.81876125]
[1746858588145,0.3587793,103730.0,103720.0,0.96460477]
[1746858590247,0.3587793,103730.0,103720.0,0.9177571]
[1746858590440,0.3897793,103730.0,103720.0,0.9177571]
[1746858590640,0.3897793,103730.0,103720.0,0.9322171]
[1746858591547,0.3897793,103730.0,103720.0,0.78637358]